Cogmind - Beta 9.6 *** ADVENTURER MODE // 2020.04.25 @ 20:15:08 Player: NoSoup4you Result: Destroyed by S-27 Virus with Autogun Performance ------------- Evolutions (3) 1500 Regions Visited (5) 1000 Robots Destroyed (53) 265 Value Destroyed (973) 973 Prototype IDs (1) 20 Alien Tech Used (0) 0 Bonus (0) 0 TOTAL SCORE: 3758 Bonus ------- None Cogmind --------- Core Integrity 0/700 Matter 55/300 Energy 99/100 System Corruption 0% Temperature Cool (0) Movement Core (50) Location -7/Factory Parts ------- > --- POWER (2) -------- (None) > --- PROPULSION (5) --- (None) > --- UTILITY (4) ------ (None) > --- WEAPON (2) ------- (None) > --- INVENTORY (4) ---- Sensor Array Improved EM Shotgun Grenade Launcher Peak State ------------ > --- POWER ------------ Deuterium Engine Deuterium Engine > --- PROPULSION ------- Wheel Wheel Wheel Wheel > --- UTILITY ---------- Sensor Array Weapon Shielding Hardlight Generator > --- WEAPON ----------- Grenade Launcher > --- INVENTORY -------- Reinforced Ion Engine Improved EM Shotgun Spread Laser Grenade Launcher [Rating: 16] Favorites ----------- Power Reinforced Ion Engine Engine Reinforced Ion Engine Propulsion Aluminum Leg Leg Aluminum Leg Wheel Wheel Utility Weapon Shielding Device Sensor Array Storage Medium Storage Unit Protection Weapon Shielding Weapon Medium Laser Energy Gun Medium Laser Launcher Grenade Launcher Build | -11 -10 -9 -9 -8 -7 ------- Run | Scr Mat Mat Min Mat Fac Slots Evolved 6 | . . 2 . 2 2 Power 1 | . . . . 1 . Propulsion 3 | . . 1 . 1 1 Utility 2 | . . 1 . . 1 Weapon . | . . . . . . Parts Attached 49 | 6 10 12 11 9 1 Power 8 | 1 . 4 . 3 . Engine 8 | 1 . 4 . 3 . Core . | . . . . . . Reactor . | . . . . . . Propulsion 13 | 2 1 1 5 4 . Treads . | . . . . . . Leg 6 | 2 1 1 1 1 . Wheel 7 | . . . 4 3 . Hover . | . . . . . . Flight . | . . . . . . Utility 10 | 1 4 1 2 2 . Device 2 | . . . 1 1 . Storage 4 | 1 3 . . . . Processor . | . . . . . . Hackware . | . . . . . . Protection 4 | . 1 1 1 1 . Artifact . | . . . . . . Weapon 18 | 2 5 6 4 . 1 Energy Gun 14 | 2 4 5 2 . 1 Energy Cannon . | . . . . . . Ballistic Gun . | . . . . . . Ballistic Cannon . | . . . . . . Launcher 4 | . 1 1 2 . . Special Weapon . | . . . . . . Impact Weapon . | . . . . . . Slashing Weapon . | . . . . . . Piercing Weapon . | . . . . . . Special Melee Weapon . | . . . . . . Unidentified Prototypes . | . . . . . . Parts Lost 18 | . . 1 4 4 9 Power 2 | . . 1 . . 1 Propulsion 7 | . . . 1 3 3 Utility 5 | . . . 1 1 3 Weapon 4 | . . . 2 . 2 Highest Loss Streak 7 | . . 1 4 2 7 Average Slot Usage (%) 77 | . 92 86 89 85 15 Engine 11 | . 14 10 11 16 3 Leg 14 | . 28 22 16 . . Wheel 8 | . . . 9 30 3 Device 2 | . . . 2 9 1 Storage 7 | . 16 11 8 . . Protection 14 | . 5 20 20 14 3 Energy Gun 13 | . 26 21 13 . 1 Launcher 5 | . . . 8 14 1 Naked Turns 151 | . . . . . 151 Heaviest Build 32 | 10 22 28 32 30 30 Greatest Support 40 | 20 20 20 30 40 30 Greatest Overweight (x) 2 | 1 1 1 1 2 2 Average Overweight (x) . | . . . . . . Largest Inventory Capacity 14 | 6 14 8 8 4 4 Average Capacity 6 | 5 7 8 6 4 4 Most Carried 7 | 3 3 7 7 4 4 Average Carried 3 | . . 5 5 2 3 Final Capacity 8 | 6 8 8 4 4 4 Final Carried 7 | . 2 7 3 4 3 Class Distribution -------------------- 73% | Mutant 26% | Scavenger-Mutant Dominant Class ---------------- Mutant | -10/Materials Mutant | -9/Materials Mutant | -9/Mines Scavenger-Mutant | -8/Materials Mutant | -7/Factory Resources | -11 -10 -9 -9 -8 -7 ----------- Run | Scr Mat Mat Min Mat Fac Matter Collected 872 | 207 59 211 220 147 28 Remotely . | . . . . . . Salvage Created 836 | . 133 236 117 322 28 Parts 58 | . 7 15 5 30 1 Haulers Intercepted 1 | . . 1 . . . Recyclers Shooed . | . . . . . . Parts Field Recycled . | . . . . . . Retrieved Matter . | . . . . . . Parts Self-Destructed . | . . . . . . Prevented . | . . . . . . Kills | -11 -10 -9 -9 -8 -7 ------- Run | Scr Mat Mat Min Mat Fac Combat Hostiles Destroyed 44 | . 8 10 14 11 1 Guns 22 | . 5 9 8 . . AOE 22 | . 3 1 6 11 1 Classes Destroyed 10 | . 3 2 2 3 . Worker 3 | . 1 . . 2 . Builder 1 | . . . . 1 . Tunneler 1 | . . . 1 . . Hauler 1 | . . 1 . . . Watcher 3 | . . . . 3 . Swarmer 17 | . 6 7 3 1 . Grunt 11 | . 2 2 . 6 1 Brawler 1 | . . 1 . . . Sentry 4 | . . . . 4 . Assembled 11 | . . . 11 . . Best Kill Streak 8 | . 6 4 7 8 1 Combat Bots Only 6 | . 5 4 6 4 1 Max Kills in Single Turn 3 | . 3 1 2 3 1 Gunslinging 1 | . . . 1 . . Exploded 3 | . 3 1 2 3 1 Melee . | . . . . . . Uniques/NPCs Destroyed . | . . . . . . Combat | -11 -10 -9 -9 -8 -7 -------- Run | Scr Mat Mat Min Mat Fac Damage Taken 2345 | . 110 279 698 354 904 Core 980 | . 16 59 130 69 706 Absorbed by Shields 187 | . . . . 87 100 Core Remaining (%) 83 | 100 93 . 52 87 . Volleys Fired 102 | . 14 28 32 25 3 Largest 2 | . 2 2 2 2 1 Hottest 130 | . 90 130 130 60 30 Shots Fired 181 | . 28 56 57 37 3 Gun 123 | . 26 52 45 . . Cannon . | . . . . . . Launcher 58 | . 2 4 12 37 3 Special . | . . . . . . Kinetic . | . . . . . . Thermal 123 | . 26 52 45 . . Explosive 58 | . 2 4 12 37 3 Electromagnetic . | . . . . . . Robot Hit Streak 20 | . 20 10 11 11 5 Robot Miss Streak 4 | . 2 4 4 2 . Penetration Max . | . . . . . . Secondary Targets 7 | . 2 2 3 . . Max Gunslinging Chain 1 | . 1 1 1 . . Shots Hit Robots 118 | . 21 37 43 14 3 Core Hits 123 | . 12 20 37 45 9 Critical Hits . | . . . . . . Critical Kills . | . . . . . . Critical Parts Destroyed . | . . . . . . Melee Attacks . | . . . . . . Impact . | . . . . . . Slashing . | . . . . . . Piercing . | . . . . . . Sneak Attacks . | . . . . . . Combat Hostiles . | . . . . . . Follow-up Attacks . | . . . . . . Damage Inflicted 3079 | . 465 502 844 1123 145 Guns 1012 | . 236 389 387 . . Cannons . | . . . . . . Explosions 2029 | . 229 113 457 1096 134 Melee . | . . . . . . Ramming 38 | . . . . 27 11 Kinetic . | . . . . . . Thermal 1012 | . 236 389 387 . . Explosive 2029 | . 229 113 457 1096 134 Electromagnetic . | . . . . . . Impact . | . . . . . . Slashing . | . . . . . . Piercing . | . . . . . . Highest Corruption 1 | . 1 . . . . Average Corruption 1 | . 1 . . . . Corruption Purged . | . . . . . . Effects 2 | . 2 . . . . Message Errors 1 | . 1 . . . . Data Loss (minor) 1 | . 1 . . . . Overload Shots . | . . . . . . Overflow Damage 65 | . 35 . 14 13 3 Projectiles . | . . . . . . Explosions 58 | . 35 . 14 6 3 Melee 7 | . . . . 7 . Knockbacks . | . . . . . . Impact . | . . . . . . Kinetic . | . . . . . . Secondary . | . . . . . . Self-Inflicted Damage 147 | . . . 23 67 57 Shots 8 | . . . 2 4 2 Rammed 3 | . . . . 1 2 Targets Rammed 3 | . . . . 1 2 Kicked . | . . . . . . Crushed . | . . . . . . Highest Temperature 573 | . 210 445 573 35 . Average Temperature 147 | . 75 153 213 10 . Received Heat Transfer 508 | . 30 42 40 145 251 Effects 13 | . . 1 12 . . Shutdowns 3 | . . 1 2 . . Energy Bleed 2 | . . . 2 . . Interference 5 | . . . 5 . . Matter Decay 1 | . . . 1 . . Damage (minor) 1 | . . . 1 . . Damage (core) 1 | . . . 1 . . Siege Activations . | . . . . . . Robots Corrupted . | . . . . . . Combat Hostiles . | . . . . . . Parts Fried . | . . . . . . Impact Corruptions 1 | . . . . 1 . Robots Melted . | . . . . . . Combat Hostiles . | . . . . . . Parts Melted 9 | . 2 6 1 . . Heat Transferred 2621 | . 620 1047 954 . . Parts Sabotaged . | . . . . . . Parts Stolen . | . . . . . . Parts Stripped . | . . . . . . Power Chain Reactions . | . . . . . . Missiles Intercepted . | . . . . . . Alert | -11 -10 -9 -9 -8 -7 ------- Run | Scr Mat Mat Min Mat Fac Peak Influence 387 | . 225 318 108 387 144 Average Influence 148 | . 176 187 75 230 114 Maximum Alert Level 1 | . 1 1 . 1 . Low Security (%) 66 | 100 35 48 100 34 100 Level 1 33 | . 65 51 . 65 . Level 2 . | . . . . . . Level 3 . | . . . . . . Level 4 . | . . . . . . Level 5 . | . . . . . . High Security . | . . . . . . Max Security . | . . . . . . Squads Dispatched 10 | . 1 . . 7 2 Investigation 3 | . 1 . . 2 . Extermination . | . . . . . . Reinforcement 4 | . . . . 2 2 Assault . | . . . . . . Garrison 3 | . . . . 3 . Intercept . | . . . . . . Construction Impeded . | . . . . . . Haulers Reinforced . | . . . . . . Stealth | -11 -10 -9 -9 -8 -7 --------- Run | Scr Mat Mat Min Mat Fac Distress Signals 1 | . . . 1 . . Communications Jammed . | . . . . . . Distress Signals . | . . . . . . Times Spotted 80 | . 9 10 15 23 23 Peak Tracking Total 13 | . 3 4 4 4 13 Tactical Retreats 7 | . . 1 1 1 4 Traps | -11 -10 -9 -9 -8 -7 ------- Run | Scr Mat Mat Min Mat Fac Traps Triggered 5 | . 2 . . . 3 Indirectly . | . . . . . . Trap Hack Attempts . | . . . . . . Triggered . | . . . . . . Disarmed . | . . . . . . Reprogrammed . | . . . . . . Reused . | . . . . . . Traps Extracted . | . . . . . . Installed . | . . . . . . Triggered . | . . . . . . Machines | -11 -10 -9 -9 -8 -7 ---------- Run | Scr Mat Mat Min Mat Fac Machines Disabled 3 | . . . . 3 . Max in Single Turn 1 | . . . . 1 . Machines Sabotaged . | . . . . . . Garrisons Compromised . | . . . . . . Overloaded Fab Kills . | . . . . . . Fab Network Shutdowns . | . . . . . . Hacking | -11 -10 -9 -9 -8 -7 --------- Run | Scr Mat Mat Min Mat Fac Machines Accessed 8 | . 2 3 . 3 . Terminals 4 | . . 1 . 3 . Fabricators . | . . . . . . Repair Stations 1 | . 1 . . . . Recycling Units 1 | . 1 . . . . Scanalyzers 2 | . . 2 . . . Garrison Access . | . . . . . . Total Hacks 30 | . 8 12 . 10 . Successful 27 | . 7 12 . 8 . Failed 2 | . 1 . . 1 . Catastrophic . | . . . . . . Database Lockouts 1 | . . . . 1 . Manual 1 | . 1 . . . . Terminals 12 | . . 2 . 10 . Fabricators . | . . . . . . Repair Stations 3 | . 3 . . . . Recycling Units 5 | . 5 . . . . Scanalyzers 10 | . . 10 . . . Garrison Access . | . . . . . . Terminal Hacks 10 | . . 2 . 8 . Record 7 | . . 1 . 6 . Alert Level 1 | . . 1 . . . Unreport Threat 1 | . . . . 1 . Zone Layout 1 | . . . . 1 . Fabricator Hacks . | . . . . . . Repair Station Hacks 3 | . 3 . . . . Scan Component 2 | . 2 . . . . Repair 1 | . 1 . . . . Recycling Unit Hacks 4 | . 4 . . . . Process 1 | . 1 . . . . Report Inventory 2 | . 2 . . . . Retrieve Matter 1 | . 1 . . . . Scanalyzer 10 | . . 10 . . . Insert Component 6 | . . 6 . . . Analyze 4 | . . 4 . . . Garrison Access Hacks . | . . . . . . Unauthorized Hacks . | . . . . . . Terminals . | . . . . . . Fabricators . | . . . . . . Repair Stations . | . . . . . . Recycling Units . | . . . . . . Scanalyzers . | . . . . . . Garrison Access . | . . . . . . Data Cores Recovered . | . . . . . . Used . | . . . . . . Hacking Detections 4 | . 1 1 . 2 . Full Trace Events 3 | . 1 1 . 1 . Feedback Events . | . . . . . . Feedback Blocked . | . . . . . . Robot Schematics Acquired . | . . . . . . Robots Built . | . . . . . . Matter . | . . . . . . Time . | . . . . . . Total Robot Build Rating . | . . . . . . Part Schematics Acquired 4 | . . 4 . . . Parts Built . | . . . . . . Matter . | . . . . . . Time . | . . . . . . Total Part Build Rating . | . . . . . . Parts Repaired 1 | . 1 . . . . Time 26 | . 26 . . . . Parts Recycled . | . . . . . . Recycled Matter 58 | . 58 . . . . Retrieved Matter 58 | . 58 . . . . Retrieved Components . | . . . . . . Parts Scanalyzed 4 | . . 4 . . . Part Schematics Acquired 4 | . . 4 . . . Parts Damaged . | . . . . . . Bothacking | -11 -10 -9 -9 -8 -7 ------------ Run | Scr Mat Mat Min Mat Fac Used RIF Installer . | . . . . . . Robots Hacked . | . . . . . . Non-combat . | . . . . . . Combat . | . . . . . . Robot Hacks Applied . | . . . . . . Relay Couplers Released . | . . . . . . Robots Rewired . | . . . . . . Allies Hacked . | . . . . . . Hacks Repelled . | . . . . . . Allies | -11 -10 -9 -9 -8 -7 -------- Run | Scr Mat Mat Min Mat Fac Total Allies . | . . . . . . Largest Group . | . . . . . . Highest-Rated Group . | . . . . . . Highest-Rated Ally . | . . . . . . Total Orders . | . . . . . . Ally Attacks . | . . . . . . Total Damage . | . . . . . . Kills . | . . . . . . Allies Corrupted . | . . . . . . Allies Melted . | . . . . . . Intel | -11 -10 -9 -9 -8 -7 ------- Run | Scr Mat Mat Min Mat Fac Robot Analysis Total . | . . . . . . Derelict Logs Recovered . | . . . . . . Drone Launches . | . . . . . . Drone Recoveries . | . . . . . . Exploration | -11 -10 -9 -9 -8 -7 ------------- Run | Scr Mat Mat Min Mat Fac Turns Passed 1874 | 62 300 447 468 322 275 Spaces Moved 1362 | 51 171 228 265 231 416 Core 374 | 18 . . . . 356 Treads . | . . . . . . Legs 593 | 33 171 228 148 13 . Wheels 395 | . . . 117 218 60 Hover . | . . . . . . Flight . | . . . . . . Fastest Speed 50 | 50 120 120 80 80 50 Average Speed 97 | 100 120 143 117 85 57 Slowest Speed 180 | 120 150 150 150 180 150 Overloaded Moves . | . . . . . . Propulsion Burnouts . | . . . . . . Robots Hopped . | . . . . . . Cave-ins Triggered . | . . . . . . Exploration Rate (%) 27 | 4 29 21 63 34 12 Regions Visited 5 Branch Regions 1 Pre-discovered Areas . | . . . . . . Known Exits Taken . | . . . . . . Unknown Exits Taken 5 | 1 1 1 1 1 . Scrap Searched 1 | . . . 1 . . Spaces Dug . | . . . . . . Terrain Destroyed 305 | . 6 16 107 166 10 Melee . | . . . . . . Projectile . | . . . . . . AOE 305 | . 6 16 107 166 10 Actions | -11 -10 -9 -9 -8 -7 --------- Run | Scr Mat Mat Min Mat Fac Total 1717 | 62 239 289 363 316 448 Wait 126 | . 26 11 47 42 . Move 1357 | 50 170 227 264 230 416 Hop . | . . . . . . Pick Up 34 | 6 10 8 5 5 . Fast Attach 3 | . . . . 3 . Attach 24 | 6 5 4 6 2 1 Detach 5 | . 2 2 . 1 . Swap 22 | . 5 8 5 4 . Drop 15 | . 7 1 4 3 . Fire 102 | . 14 28 32 25 3 Melee . | . . . . . . Ram 3 | . . . . 1 2 Kick . | . . . . . . Crush . | . . . . . . Escape Stasis 26 | . . . . . 26 Rewire . | . . . . . . Trap . | . . . . . . Miscellaneous . | . . . . . . Route ------- -11/Scrapyard -10/Materials -9/Materials -9/Mines -8/Materials -7/Factory History --------- Turn | Location | Event 35 | -11/Scrapyard | Discovered new exit (range 16) 63 | -11/Scrapyard | Entered Materials 300 | -10/Materials | Build established: Mutant 309 | -10/Materials | Discovered new exit (range 5) 354 | -10/Materials | Repaired Med. Laser 363 | -10/Materials | Entered another Materials area 363 | -9/Materials | Evolved 2 slots: Propulsion x1, Utility x1 788 | -9/Materials | Discovered new exit (range 12) 810 | -9/Materials | Entered Mines 940 | -9/Mines | Assembled infested the area 1061 | -9/Mines | Lost 4 parts (1n1u2w) 1243 | -9/Mines | Discovered new exit (range 6) 1278 | -9/Mines | Entered Materials 1278 | -8/Materials | Evolved 2 slots: Power x1, Propulsion x1 1374 | -8/Materials | Garrison activated, responded to threat 1448 | -8/Materials | Build established: Scavenger-Mutant 1509 | -8/Materials | Central database locked down 1594 | -8/Materials | Discovered new exit (range 8) 1600 | -8/Materials | Entered Factory 1600 | -7/Factory | Evolved 2 slots: Propulsion x1, Utility x1 1715 | -7/Factory | Lost 7 parts (1p2n3u1w) 1761 | -7/Factory | Core integrity fell below 50% 1844 | -7/Factory | Core integrity fell below 20% 1875 | -7/Factory | Destroyed by S-27 Virus with Autogun Last Messages --------------- Field strength at 76. Field strength at 70. Field strength at 57. Field strength at 47. Field strength at 33. Field strength at 27. Field strength at 18. Field strength at 12. Stasis field depleted. O-24 Administrator: "IFF HANDSHAKE FAILED. SECURING TERMINAL." ALERT: Hostiles spotted, dispatching reinforcements to Terminal F015. C-30 ARC bursts open, deploying its payload. S-27 Virus unfolds itself. K-01 Serf cleans the Neutrino Reactor. Spread Laser destroyed. K-01 Serf cleans the Neutrino Reactor. O-24 Administrator: "IFF HANDSHAKE FAILED. SECURING TERMINAL." ALERT: Hostiles spotted, dispatching reinforcements to Terminal F002. Terminal unresponsive. Slammed into G-47 Trooper. Map ----- +----------------------------------------------------+ | ????????""" """ ?# """ """ #??????????????????? | | #####???""" """ ?# """ """ ?????????????????????? | | + """ """??# """ """ #??????????????????? | | # ??# +??????????????????? | | # # """ """ #??????????????????? | | + + """ """ ?????????????????????? | | #### = # """ """ #??????????????????? | | ##############??# #??????????????????? | | / ######## """ """ #??????????????????? | | ## # """ """ ? ???????????????????? | | ?# * # """ """?? #??????????????????? | | ?# # #??????????????????? | | ?# """""" + """ """ s##?????????????????? | | ?# """""" # """ """ ??????????????????? | | ?# """""" # """ """ #??????????????????? | | ?# """""" # s#??????????????????? | | ?# # """ """ #??????????????????? | | ?##+##+#### """ """ #??????????????????? | | ??# #??# """ """s #??????????????????? | | ### #### #??????????????????? | | #??????????????????? | | ######### #??????????????????? | | """" """""" #???????# #??????????????????? | | "T"" """""" #???????# #??????????????????? | | """""" #???????# #??????????????????? | | """""" #???????#@ #??????????????????? | | #???????# #??????????????????? | | #???????# #??????????????????? | | +########## #???????# #??????????????????? | | ## #???????# #??????????????????? | | ## #???????# ?????????????????? | | ## #???????+ ????????????????? | | ## #???????# ???????????????? | | ## #???????# ??????????????? | | ########### #???????? ?????????????? | | ??""" ""??# #????????##+#########????????????? | | ? """ """?# #????????????????????????????????? | | # """ """?# #????????????????????????????????? | | # # #????????????????????????????????? | | # # #????????????????????????????????? | | # + #????????????????????????????????? | | # ! # #????????????????????????????????? | | # # #????????????????????????????????? | | ########### #????????????????????????????????? | | #????????????????????????????????? | | ######???????????????????????????? | | +???????????????????????????? | | ######???????????????????????????? | | #??????#######???????????????????? | | +######## #??????# #???????????????????? | +----------------------------------------------------+ Best States ------------- Heat Dissipation 34 Energy Generation 23 Energy Capacity 450 Matter Stores 300 Matter Capacity 300 Sight Range 16 Robot Scan Range 10 Terrain Scan Density 10 Armor Coverage 225 Resistance: KI 20 Resistance: TH 20 Resistance: EX 20 Resistance: EM 20 Resistance: I 20 Resistance: S 20 Resistance: P 20 Weapon Shielding 33 Evasion (%) 50 Offensive Hacking 10 Item Schematics ----------------- Sensor Array | -9/Materials | Scanalyzed Grenade Launcher | -9/Materials | Scanalyzed Med. Laser | -9/Materials | Scanalyzed Aluminum Leg | -9/Materials | Scanalyzed Robot Schematics ------------------ None Fabricated ------------ Nothing Alien Tech Used ----------------- None Achievements -------------- Everything Is Under Control I Survived The Infestation Let's See Who's Tougher Loot Pinata Made in Tau Ceti IV One Hack Too Far Oops Part-time Mechanic Remodeling Safety First Uninvited Guest Challenges ------------ None Game ------ Seed FocalTractorGravjet Manual? 0 Play Time 00:44:31 Cumulative 2.3 hours Start 2020.04.25 @ 19:33:05 End 2020.04.25 @ 20:15:08 Sessions 1 Manual Loads 0 Difficulty Adventurer Special Mode None Game No. 6 Rogue 4 Adventurer 2 Explorer 0 Win Type - Total 0 Types 0/0/0/0/0/0/0 Lore% 6 Gallery% 7 Achievement% 5 Wizard Run 0 Options --------- ASCII 1 Keyboard 0 Movement Numpad Keybinds 0 Fullscreen 1 Font 18/SmallcapsGlow Map View 76x50 Tactical HUD 0 Map Filters NONE Filters NONE Steam 1 RUN: fb04bbc6-2c0f-4955-8344-1bd2a4bb8d1c